fUSD/lending_fUSD_20240125
["ID","MTS","AMOUNT","RATE_DAILY","PERIOD"]
[312676019,1706142711320,-500.0,0.00052602,31]
[312676020,1706142711329,-544.16,0.00052602,31]
[312676021,1706142711338,-2294.01,0.00052602,31]
[312676022,1706142711348,-500.0,0.00052602,31]
[312676023,1706142711357,-500.0,0.00052602,31]
[312676024,1706142711366,-671.26,0.00052602,31]
[312676025,1706142711375,-500.0,0.00052602,31]
[312676026,1706142711385,-583.12,0.00052602,31]
[312676027,1706142711393,-830.43,0.00052602,31]
[312676028,1706142711403,-652.75,0.00052602,31]
[312676029,1706142711412,-556.8,0.00052602,31]
[312676030,1706142711422,-500.0,0.00052602,31]
[312676031,1706142711431,-2589.2,0.00052602,31]
[312676032,1706142711441,-545.42,0.00052602,31]
[312676033,1706142711451,-541.32,0.00052602,31]
[312676034,1706142711461,-500.0,0.00052602,31]
[312676035,1706142711470,-500.0,0.00052602,31]
[312676036,1706142711479,-545.58,0.00052602,31]
[312676037,1706142711488,-659.09,0.00052602,31]
[312676038,1706142711498,-586.96,0.00052602,31]
[312676039,1706142711507,-2351.31,0.00052602,31]
[312676040,1706142711517,-1206.46,0.00052602,31]
[312676041,1706142711526,-583.57,0.00052602,31]
[312676042,1706142711536,-524.43,0.00052602,31]
[312676043,1706142711545,-966.39,0.00052602,31]
[312676044,1706142711554,-596.67,0.00052602,31]
[312676045,1706142711564,-500.0,0.00052602,31]
[312676046,1706142711574,-612.43,0.00052602,31]
[312676047,1706142711583,-683.16,0.00052602,31]
[312676048,1706142711594,-710.01,0.00052602,31]
[312676049,1706142711603,-500.0,0.00052602,31]
[312676050,1706142711613,-1407.74,0.00052602,31]
[312676051,1706142711622,-500.0,0.00052602,31]
[312676052,1706142711632,-5543.02,0.00052602,31]
[312676053,1706142711642,-500.0,0.00052602,31]
[312676054,1706142711651,-500.0,0.00052602,31]
[312676055,1706142711661,-2066.55,0.00052602,31]
[312676056,1706142711670,-620.76,0.00052602,31]
[312676057,1706142711679,-1226.31,0.00052602,31]
[312676058,1706142711689,-1016.7,0.00052602,31]
[312676059,1706142711698,-500.0,0.00052602,31]
[312676060,1706142711709,-563.82,0.00052602,31]
[312676061,1706142711718,-742.38,0.00052602,31]
[312676062,1706142711728,-552.79,0.00052602,31]
[312676063,1706142711738,-500.0,0.00052602,31]
[312676064,1706142711747,-547.01,0.00052602,31]
[312676065,1706142711757,-369.52,0.00052602,31]
[312676066,1706142711767,-514.66,0.00052602,31]
[312676067,1706142711776,-3013.17,0.00052602,31]
[312676068,1706142711786,-540.87,0.00052602,31]
[312676069,1706142711796,-712.54,0.00052602,31]
[312676070,1706142711806,-2280.94,0.00052602,31]
[312676071,1706142711817,-778.86,0.00052602,31]
[312676072,1706142711827,-950.67,0.00052602,31]
[312676073,1706142711837,-500.0,0.00052602,31]
[312676074,1706142711847,-500.0,0.00052602,31]
[312676075,1706142711856,-500.0,0.00052602,31]
[312676076,1706142711866,-1663.46,0.00052602,31]
[312676077,1706142711875,-500.0,0.00052602,31]
[312676078,1706142711885,-500.0,0.00052602,31]
[312676079,1706142711895,-649.21,0.00052602,31]
[312676080,1706142711905,-787.85,0.00052602,31]
[312676081,1706142711915,-1247.69,0.00052602,31]
[312676082,1706142711924,-1073.61,0.00052602,31]
[312676083,1706142711934,-605.95484284,0.00052602,31]
[312676084,1706142711943,-500.0,0.00052602,31]
[312676085,1706142711953,-640.51423789,0.00052602,31]
[312676086,1706142711963,-1265.65,0.00052602,31]
[312676087,1706142711973,-618.27,0.00052602,31]
[312676088,1706142711983,-500.0,0.00052602,31]
[312676089,1706142711993,-500.0,0.00052602,31]
[312676090,1706142712003,-2426.6,0.00052602,31]
[312676091,1706142712012,-3061.04,0.00052602,31]
[312676092,1706142712022,-500.0,0.00052602,31]
[312676093,1706142712032,-1315.35,0.00052602,31]
[312676094,1706142712042,-700.1,0.00052602,31]
[312676095,1706142712051,-660.57,0.00052602,31]
[312676096,1706142712061,-706.67,0.00052602,31]
[312676097,1706142712070,-500.0,0.00052602,31]
[312676098,1706142712079,-500.0,0.00052602,31]
[312676099,1706142712090,-860.59,0.00052602,31]
[312676100,1706142712100,-733.61,0.00052602,31]
[312676101,1706142712109,-1000.0,0.00052602,7]
[312676102,1706142712118,-553.53,0.00052602,31]
[312676103,1706142712127,-501.79,0.00052602,31]
[312676104,1706142712137,-605.74,0.00052602,31]
[312676105,1706142712146,-500.0,0.00052602,31]
[312676106,1706142712156,-564.19,0.00052602,31]
[312676107,1706142712166,-500.0,0.00052602,31]
[312676108,1706142712175,-740.74,0.00052602,31]
[312676109,1706142712185,-500.0,0.00052602,31]
[312676110,1706142712194,-1295.4,0.00052602,31]
[312676111,1706142712204,-519.74,0.00052602,31]
[312676112,1706142712213,-500.0,0.00052602,31]
[312676113,1706142712223,-500.0,0.00052602,31]
[312676114,1706142712232,-649.59,0.00052602,31]
[312676115,1706142712242,-459.26492553,0.00052602,31]
[312676116,1706142712251,-537.1,0.00052602,31]
[312676117,1706142712260,-599.29,0.00052602,31]
[312676118,1706142712270,-765.11,0.00052602,31]
[312676119,1706142712279,-3710.41,0.00052602,31]
[312676120,1706142712288,-500.0,0.00052602,31]
[312676121,1706142712298,-500.0,0.00052602,31]
[312676122,1706142712307,-500.0,0.00052602,31]
[312676123,1706142712317,-1451.54,0.00052602,31]
[312676124,1706142712326,-582.64705425,0.00052602,31]
[312676125,1706142712335,-737.72,0.00052602,31]
[312676126,1706142712346,-658.3,0.00052602,31]
[312676127,1706142712355,-500.0,0.00052602,31]
[312676128,1706142712365,-500.0,0.00052602,31]
[312676129,1706142712374,-500.0,0.00052602,31]
[312676130,1706142712384,-748.16,0.00052602,31]
[312676131,1706142712393,-536.66,0.00052602,31]
[312676132,1706142712403,-500.0,0.00052602,31]
[312676133,1706142712412,-655.7,0.00052602,31]
[312676134,1706142712422,-937.73,0.00052602,2]
[312676135,1706142712431,-678.69,0.00052602,31]
[312676136,1706142712441,-500.0,0.00052602,31]
[312676137,1706142712450,-764.66,0.00052602,31]
[312676138,1706142712459,-500.0,0.00052602,31]
[312676139,1706142712468,-673.27,0.00052602,31]
[312676140,1706142712477,-820.44,0.00052602,31]
[312676141,1706142712487,-797.85,0.00052602,31]
[312676142,1706142712497,-500.0,0.00052602,31]
[312676143,1706142712507,-500.0,0.00052602,31]
[312676144,1706142712516,-500.0,0.00052602,31]
[312676145,1706142712526,-618.86,0.00052602,31]
[312676146,1706142712535,-515.5,0.00052602,31]
[312676147,1706142712545,-500.0,0.00052602,31]
[312676148,1706142712554,-792.67,0.00052602,31]
[312676149,1706142712564,-717.84,0.00052602,31]
[312676150,1706142712573,-1129.79,0.00052602,31]
[312676151,1706142712582,-262.68373098,0.00052602,31]
[312676152,1706142712592,-500.0,0.00052602,31]
[312676153,1706142712602,-510.96,0.00052602,31]
[312676154,1706142712611,-600.26,0.00052602,31]
[312676155,1706142712621,-419.45624987,0.00052602,31]
[312676156,1706142712631,-689.9,0.00052602,31]
[312676157,1706142712640,-214.53,0.00052602,31]
[312676158,1706142712650,-594.93,0.00052602,2]
[312676159,1706142712660,-738.6,0.00052602,31]
[312676160,1706142712669,-724.18,0.00052602,31]
[312676161,1706142712679,-757.86,0.00052602,2]
[312676162,1706142712688,-754.82,0.00052602,31]
[312676163,1706142712698,-1187.72,0.00052602,31]
[312676164,1706142712707,-500.0,0.00052602,31]
[312676165,1706142712717,-500.0,0.00052602,31]
[312676166,1706142712727,-1281.32,0.00052602,31]
[312676167,1706142712737,-2728.94,0.00052602,31]
[312676168,1706142712746,-150.0,0.0005261,7]
[312676169,1706142712756,-487.42349504,0.00052614,60]
[312676170,1706142712765,-150.0,0.00052634,7]
[312676171,1706142712775,-171.07045976,0.00052647,60]
[312676172,1706142712784,-164.81285387,0.00052666,60]
[312676173,1706142712793,-150.0,0.0005267,7]
[312676174,1706142712803,-150.37716717,0.0005267,60]
[312676175,1706142712816,-150.0,0.0005269,7]
[312676176,1706142712826,-1333.8804098,0.00052696,2]
[312676177,1706142712835,-150.0,0.00052697,7]
[312676178,1706142712846,-158.39181887,0.00052697,60]
[312676179,1706142712855,-150.0,0.0005272,7]
[312676180,1706142712864,-150.0,0.0005273,7]
[312676181,1706142712874,-1273.15306011,0.0005273,120]
[312676182,1706142712883,-150.0,0.00052732,7]
[312676183,1706142712894,-300.0,0.00052739,120]
[312676184,1706142712903,-487.42349504,0.0005274,60]
[312676185,1706142712912,-487.42349504,0.00052744,60]
[312676186,1706142712921,-3215.43,0.00052773,31]
[312676187,1706142712931,-670.53,0.00052773,31]
[312676188,1706142712941,-7626.24,0.00052773,31]
[312676189,1706142712950,-3357.15,0.00052773,5]
[312676190,1706142712959,-512.5,0.00052773,31]
[312676191,1706142712968,-501.09,0.00052773,31]
[312676192,1706142712978,-922.59,0.00052773,31]
[312676193,1706142712987,-1246.83,0.00052773,31]
[312676194,1706142712997,-605.47,0.00052773,31]
[312676195,1706142713006,-635.76,0.00052773,31]
[312676196,1706142713016,-785.77,0.00052773,31]
[312676197,1706142713026,-688.0,0.00052773,31]
[312676198,1706142713036,-719.8,0.00052773,31]
[312676199,1706142713046,-580.99,0.00052773,31]
[312676200,1706142713055,-500.0,0.00052773,31]
[312676201,1706142713066,-500.0,0.00052773,31]
[312676202,1706142713075,-597.78,0.00052773,31]
[312676203,1706142713084,-537.23,0.00052773,31]
[312676204,1706142713094,-612.72,0.00052773,31]
[312676205,1706142713103,-646.07,0.00052773,31]
[312676206,1706142713113,-500.0,0.00052773,31]
[312676207,1706142713122,-500.0,0.00052773,31]
[312676208,1706142713132,-701.09,0.00052773,31]
[312676209,1706142713141,-523.57,0.00052773,31]
[312676210,1706142713150,-500.0,0.00052773,31]
[312676211,1706142713160,-535.75,0.00052773,31]
[312676212,1706142713169,-517.29,0.00052773,31]
[312676213,1706142713178,-571.27,0.00052773,31]
[312676214,1706142713189,-164.81285387,0.00052778,60]
[312676215,1706142713199,-150.0,0.00052784,7]
[312676216,1706142713208,-394.0,0.0005279,2]
[312676217,1706142713218,-262.0,0.0005279,2]
[312676218,1706142713227,-150.0,0.00052795,7]
[312676219,1706142713236,-620.7,0.00052801,120]
[312676220,1706142713246,-155.25098285,0.00052802,60]
[312676221,1706142713255,-150.0,0.00052803,7]
[312676222,1706142713265,-150.37716717,0.00052803,60]
[312676223,1706142713275,-150.0,0.00052804,7]
[312676224,1706142713287,-267.94293967,0.0005282,12]
[312676225,1706142713295,-150.0,0.00052826,7]
[312676226,1706142713305,-150.0,0.00052827,7]
[312676227,1706142713314,-150.0,0.00052829,7]
[312676228,1706142713323,-150.0,0.00052832,7]
[312676229,1706142713333,-153.87365434,0.00052835,60]
[312676230,1706142713343,-164.81285387,0.00052843,60]
[312676231,1706142713352,-153.87365434,0.00052847,60]
[312676232,1706142713361,-150.0,0.00052857,7]
[312676233,1706142713371,-8997.87428249,0.00052876,2]
[312676234,1706142713380,-595.87,0.00052876,31]
[312676235,1706142713390,-211.53008539,0.00052876,31]
[312676236,1706142713399,-500.0,0.00052876,31]
[312676237,1706142713408,-545.8,0.00052876,31]
[312676238,1706142713417,-500.0,0.00052876,31]
[312676239,1706142713426,-500.0,0.00052876,31]
[312676240,1706142713435,-500.0,0.00052876,31]
[312676241,1706142713444,-500.0,0.00052876,31]
[312676242,1706142713453,-500.0,0.00052876,31]
[312676243,1706142713462,-500.0,0.00052876,31]
[312676244,1706142713471,-500.0,0.00052876,31]
[312676245,1706142713480,-500.0,0.00052876,31]
[312676246,1706142713489,-339.07897208,0.00052876,31]
[312676247,1706142713498,-500.0,0.00052876,31]
[312676248,1706142713507,-500.0,0.00052876,31]
[312676249,1706142713516,-500.0,0.00052876,31]
[312676250,1706142713526,-531.9925018,0.00052876,31]
[312676251,1706142713535,-500.0,0.00052876,31]
[312676252,1706142713543,-500.0,0.00052876,20]
[312676253,1706142713712,-500.0,0.00052876,31]
[312676254,1706142713721,-500.0,0.00052876,31]
[312676255,1706142713730,-500.0,0.00052876,14]
[312676256,1706142713739,-500.0,0.00052876,31]
[312676257,1706142713748,-442.77228413,0.00052876,31]
[312676258,1706142713758,-563.16665238,0.00052876,31]
[312676259,1706142713767,-1202.05,0.00052876,31]
[312676260,1706142713776,-546.04,0.00052876,31]
[312676261,1706142713786,-214.02236017,0.00052876,31]
[312676262,1706142713795,-500.0,0.00052876,31]
[312676263,1706142713805,-689.23,0.00052876,2]
[312676264,1706142713817,-839.27,0.00052876,2]
[312676265,1706142713826,-500.0,0.00052876,31]
[312676266,1706142713836,-1213.27,0.00052876,31]
[312676267,1706142713845,-689.7,0.00052876,31]
[312676268,1706142713854,-500.0,0.00052876,31]
[312676269,1706142713863,-688.21,0.00052876,31]
[312676270,1706142713873,-527.15,0.00052876,31]
[312676271,1706142713882,-556.3,0.00052876,31]
[312676272,1706142713892,-976.84,0.00052876,7]
[312676273,1706142713902,-500.0,0.00052876,31]
[312676274,1706142713912,-565.89,0.00052876,31]
[312676275,1706142713921,-500.0,0.00052876,31]
[312676276,1706142713931,-500.0,0.00052876,31]
[312676277,1706142713940,-500.0,0.00052876,31]
[312676278,1706142713949,-546.25035159,0.00052876,31]
[312676279,1706142713959,-373.28975634,0.00052876,31]
[312676280,1706142713968,-500.0,0.00052876,31]
[312676281,1706142713978,-500.0,0.00052876,31]
[312676282,1706142713987,-781.79,0.00052876,31]
[312676283,1706142713996,-500.0,0.00052876,31]
[312676284,1706142714006,-500.0,0.00052876,31]
[312676285,1706142714015,-500.0,0.00052876,31]
[312676286,1706142714024,-500.0,0.00052876,31]
[312676287,1706142714033,-1179.82,0.00052876,31]
[312676288,1706142714043,-3431.79,0.00052876,15]
[312676289,1706142714052,-500.0,0.00052876,31]
[312676290,1706142714061,-568.5,0.00052876,31]
[312676291,1706142714071,-476.21282684,0.00052876,31]
[312676292,1706142714080,-1640.43,0.00052876,31]
[312676293,1706142714089,-500.0,0.00052876,31]
[312676294,1706142714098,-500.0,0.00052876,31]
[312676295,1706142714107,-500.0,0.00052876,31]
[312676296,1706142714116,-599.18,0.00052876,31]
[312676297,1706142714125,-500.0,0.00052876,31]
[312676298,1706142714133,-826.78,0.00052876,120]
[312676299,1706142714143,-3450.92,0.00052876,31]
[312676300,1706142714152,-500.0,0.00052876,31]
[312676301,1706142714161,-500.0,0.00052876,31]
[312676302,1706142714170,-500.0,0.00052876,31]
[312676303,1706142714179,-500.0,0.00052876,31]
[312676304,1706142714189,-549.31,0.00052876,31]
[312676305,1706142714198,-951.5,0.00052876,31]
[312676306,1706142714208,-165.83112575,0.00052876,31]
[312676307,1706142714217,-500.0,0.00052876,31]
[312676308,1706142714226,-506.14,0.00052876,31]
[312676309,1706142714236,-500.0,0.00052876,31]
[312676310,1706142714245,-433.29645532,0.00052876,31]
[312676311,1706142714254,-500.0,0.00052876,31]
[312676312,1706142714263,-524.02774146,0.00052876,31]
[312676313,1706142714273,-500.0,0.00052876,31]
[312676314,1706142714282,-500.0,0.00052876,31]
[312676315,1706142714292,-500.0,0.00052876,31]
[312676316,1706142714302,-372.85267539,0.00052876,31]
[312676317,1706142714311,-500.0,0.00052876,31]
[312676318,1706142714320,-586.01,0.00052876,31]
[312676319,1706142714330,-610.51,0.00052876,2]
[312676320,1706142714340,-787.32,0.00052876,31]
[312676321,1706142714349,-1518.82,0.00052876,2]
[312676322,1706142714358,-500.0,0.00052876,31]
[312676323,1706142714367,-500.0,0.00052876,31]
[312676324,1706142714377,-696.9,0.00052876,31]
[312676325,1706142714386,-500.0,0.00052876,31]
[312676326,1706142714396,-500.0,0.00052876,120]
[312676327,1706142714406,-839.16,0.00052876,31]
[312676328,1706142714415,-949.05,0.00052876,31]
[312676329,1706142714424,-1090.8,0.00052876,7]
[312676330,1706142714433,-500.0,0.00052876,31]
[312676331,1706142714442,-500.0,0.00052876,31]
[312676332,1706142714451,-500.0,0.00052876,31]
[312676333,1706142714460,-500.0,0.00052876,31]
[312676334,1706142714469,-500.0,0.00052876,31]
[312676335,1706142714479,-500.0,0.00052876,31]
[312676336,1706142714488,-500.0,0.00052876,31]
[312676337,1706142714498,-500.0,0.00052876,31]
[312676338,1706142714508,-500.0,0.00052876,31]
[312676339,1706142714517,-495.20715706,0.00052876,31]
[312676340,1706142714527,-500.0,0.00052876,31]
[312676341,1706142714535,-500.0,0.00052876,31]
[312676342,1706142714545,-500.0,0.00052876,31]
[312676343,1706142714554,-569.39,0.00052876,31]
[312676344,1706142714563,-500.0,0.00052876,31]
[312676345,1706142714572,-500.0,0.00052876,31]
[312676346,1706142714582,-542.21187708,0.00052876,31]
[312676347,1706142714592,-500.0,0.00052876,31]
[312676348,1706142714601,-500.0,0.00052876,31]
[312676349,1706142714611,-500.0,0.00052876,31]
[312676350,1706142714621,-500.0,0.00052876,31]
[312676351,1706142714630,-248.32469468,0.00052876,31]
[312676352,1706142714639,-500.0,0.00052876,31]
[312676353,1706142714649,-1012.49,0.00052876,31]
[312676354,1706142714658,-500.0,0.00052876,31]
[312676355,1706142714667,-281.25033106,0.00052876,31]
[312676356,1706142714677,-500.0,0.00052876,31]
[312676357,1706142714686,-308.71499999,0.00052876,31]
[312676358,1706142714695,-799.68,0.00052876,31]
[312676359,1706142714705,-500.0,0.00052876,31]
[312676360,1706142714714,-233.63655456,0.00052876,31]
[312676361,1706142714723,-500.0,0.00052876,31]
[312676362,1706142714733,-543.8,0.00052876,31]
[312676363,1706142714743,-986.07,0.00052876,31]
[312676364,1706142714752,-500.0,0.00052876,31]
[312676365,1706142714761,-500.0,0.00052876,31]
[312676366,1706142714771,-500.0,0.00052876,31]
[312676367,1706142714780,-500.0,0.00052876,31]
[312676368,1706142714789,-1153.66,0.00052876,31]
[312676369,1706142714800,-516.65,0.00052876,31]
[312676370,1706142714813,-500.0,0.00052876,31]
[312676371,1706142714822,-500.0,0.00052876,31]
[312676372,1706142714832,-1241.77,0.00052876,31]
[312676373,1706142714842,-500.0,0.00052876,31]
[312676374,1706142714851,-500.0,0.00052876,31]
[312676375,1706142714860,-500.0,0.00052876,31]
[312676376,1706142714870,-500.0,0.00052876,31]
[312676377,1706142714878,-653.39,0.00052876,31]
[312676378,1706142714889,-204.82959114,0.00052876,31]
[312676379,1706142714899,-836.07,0.00052876,31]
[312676380,1706142714908,-756.21,0.00052876,31]
[312676381,1706142714917,-515.25,0.00052876,31]
[312676382,1706142714927,-1013.31,0.00052876,31]
[312676383,1706142714936,-500.0,0.00052876,31]
[312676384,1706142714946,-528.69,0.00052876,31]
[312676385,1706142714955,-616.32,0.00052876,31]
[312676386,1706142714964,-500.0,0.00052876,31]
[312676387,1706142714974,-956.92,0.00052876,31]
[312676388,1706142714983,-232.72343714,0.00052876,31]
[312676389,1706142714992,-186.84,0.00052876,31]
[312676390,1706142715002,-623.35696267,0.00052876,31]
[312676391,1706142715012,-998.0,0.00052876,31]
[312676392,1706142715021,-500.0,0.00052876,31]
[312676393,1706142715031,-682.58,0.00052876,31]
[312676394,1706142715041,-500.0,0.00052876,31]
[312676395,1706142715050,-4855.5,0.00052876,31]
[312676396,1706142715060,-500.0,0.00052876,31]
[312676397,1706142715069,-500.0,0.00052876,31]
[312676398,1706142715079,-500.0,0.00052876,31]
[312676399,1706142715089,-2993.87,0.00052876,31]
[312676400,1706142715099,-500.0,0.00052876,31]
[312676401,1706142715109,-5084.18,0.00052876,5]
[312676402,1706142715118,-1768.63,0.00052876,31]
[312676403,1706142715127,-900.81,0.00052876,31]
[312676404,1706142715137,-531.92,0.00052876,31]
[312676405,1706142715147,-387.12751919,0.00052876,7]
[312676406,1706142715156,-500.0,0.00052876,31]
[312676407,1706142715165,-801.09,0.00052876,31]
[312676408,1706142715175,-500.0,0.00052876,31]
[312676409,1706142715185,-500.0,0.00052876,31]
[312676410,1706142715194,-500.0,0.00052876,31]
[312676411,1706142715203,-524.49,0.00052876,31]
[312676412,1706142715213,-500.0,0.00052876,31]
[312676413,1706142715223,-500.0,0.00052876,31]
[312676414,1706142715233,-500.0,0.00052876,31]
[312676415,1706142715242,-544.16,0.00052876,31]
[312676416,1706142715253,-2294.01,0.00052876,31]
[312676417,1706142715262,-500.0,0.00052876,31]
[312676418,1706142715280,-500.0,0.00052876,31]
[312676419,1706142715292,-671.26,0.00052876,31]
[312676420,1706142715302,-500.0,0.00052876,31]
[312676421,1706142715311,-583.12,0.00052876,31]
[312676422,1706142715321,-830.43,0.00052876,31]
[312676423,1706142715331,-652.75,0.00052876,31]
[312676424,1706142715341,-556.8,0.00052876,31]
[312676425,1706142715351,-500.0,0.00052876,31]
[312676426,1706142715360,-2589.2,0.00052876,31]
[312676427,1706142715370,-545.42,0.00052876,31]
[312676428,1706142715381,-541.32,0.00052876,31]
[312676429,1706142715391,-500.0,0.00052876,31]
[312676430,1706142715401,-500.0,0.00052876,31]
[312676431,1706142715411,-545.58,0.00052876,31]
[312676432,1706142715421,-659.09,0.00052876,31]
[312676433,1706142715430,-586.96,0.00052876,31]
[312676434,1706142715440,-2351.31,0.00052876,31]
[312676435,1706142715449,-1206.46,0.00052876,31]
[312676436,1706142715459,-583.57,0.00052876,31]
[312676437,1706142715468,-524.43,0.00052876,31]
[312676438,1706142715477,-966.39,0.00052876,31]
[312676439,1706142715487,-596.67,0.00052876,31]
[312676440,1706142715497,-500.0,0.00052876,31]
[312676441,1706142715506,-612.43,0.00052876,31]
[312676442,1706142715517,-683.16,0.00052876,31]
[312676443,1706142715527,-500.0,0.00052876,31]
[312676444,1706142715538,-710.01,0.00052876,31]
[312676445,1706142715548,-1407.74,0.00052876,31]
[312676446,1706142715558,-500.0,0.00052876,31]
[312676447,1706142715567,-5543.02,0.00052876,31]
[312676448,1706142715577,-500.0,0.00052876,31]
[312676449,1706142715587,-2066.55,0.00052876,31]
[312676450,1706142715599,-506.10201446,0.00052876,31]
[312676451,1706142715609,-620.76,0.00052876,31]
[312676452,1706142715618,-1226.31,0.00052876,31]
[312676453,1706142715628,-1016.7,0.00052876,31]
[312676454,1706142715638,-500.0,0.00052876,31]
[312676455,1706142715649,-742.38,0.00052876,31]
[312676456,1706142715658,-563.82,0.00052876,31]
[312676457,1706142715669,-552.79,0.00052876,31]
[312676458,1706142715678,-500.0,0.00052876,31]
[312676459,1706142715687,-547.01,0.00052876,31]
[312676460,1706142715697,-514.66,0.00052876,31]
[312676461,1706142715706,-3013.17,0.00052876,31]
[312676462,1706142715716,-540.87,0.00052876,31]
[312676463,1706142715726,-712.54,0.00052876,31]
[312676464,1706142715735,-2280.94,0.00052876,31]
[312676465,1706142715745,-778.86,0.00052876,31]
[312676466,1706142715754,-950.67,0.00052876,31]
[312676467,1706142715764,-500.0,0.00052876,31]
[312676468,1706142715774,-500.0,0.00052876,31]
[312676469,1706142715783,-500.0,0.00052876,31]
[312676470,1706142715793,-1663.46,0.00052876,31]
[312676471,1706142715806,-500.0,0.00052876,31]
[312676472,1706142715815,-500.0,0.00052876,31]
[312676473,1706142715825,-649.21,0.00052876,31]
[312676474,1706142715835,-787.85,0.00052876,31]
[312676475,1706142715845,-1247.69,0.00052876,31]
[312676476,1706142715855,-1073.61,0.00052876,31]
[312676477,1706142715864,-538.32480258,0.00052876,31]
[312676478,1706142715874,-1265.65,0.00052876,31]
[312676479,1706142715884,-618.27,0.00052876,31]
[312676480,1706142715895,-500.0,0.00052876,31]
[312676481,1706142715905,-500.0,0.00052876,31]
[312676482,1706142715916,-2426.6,0.00052876,31]
[312676483,1706142715926,-3061.04,0.00052876,31]
[312676484,1706142715935,-500.0,0.00052876,31]
[312676485,1706142715946,-1315.35,0.00052876,31]
[312676486,1706142715955,-700.1,0.00052876,31]
[312676487,1706142715965,-660.57,0.00052876,31]
[312676488,1706142715974,-706.67,0.00052876,31]
[312676489,1706142715983,-500.0,0.00052876,31]
[312676490,1706142715993,-192.44936044,0.00052876,31]
[312676491,1706142716003,-860.59,0.00052876,31]
[312676492,1706142716012,-733.61,0.00052876,31]
[312676493,1706142716022,-1000.0,0.00052876,7]
[312676494,1706142716032,-553.53,0.00052876,31]
[312676495,1706142716042,-501.79,0.00052876,31]
[312676496,1706142716052,-605.74,0.00052876,31]
[312676497,1706142716061,-500.0,0.00052876,31]
[312676498,1706142716072,-564.19,0.00052876,31]
[312676499,1706142716081,-500.0,0.00052876,31]
[312676500,1706142716091,-740.74,0.00052876,31]
[312676501,1706142716100,-500.0,0.00052876,31]
[312676502,1706142716110,-1295.4,0.00052876,31]
[312676503,1706142716120,-519.74,0.00052876,31]
[312676504,1706142716129,-500.0,0.00052876,31]
[312676505,1706142716138,-500.0,0.00052876,31]
[312676506,1706142716148,-649.59,0.00052876,31]
[312676507,1706142716158,-537.1,0.00052876,31]
[312676508,1706142716167,-599.29,0.00052876,31]
[312676509,1706142716374,-765.11,0.00052876,31]
[312676510,1706142716384,-3710.41,0.00052876,31]
[312676511,1706142716394,-500.0,0.00052876,31]
[312676512,1706142716404,-500.0,0.00052876,31]
[312676513,1706142716413,-500.0,0.00052876,31]
[312676514,1706142716423,-1451.54,0.00052876,31]
[312676515,1706142716433,-737.72,0.00052876,31]
[312676516,1706142716442,-658.3,0.00052876,31]
[312676517,1706142716452,-500.0,0.00052876,31]
[312676518,1706142716462,-500.0,0.00052876,31]